fUST/lending_fUST_20250423
["ID","MTS","AMOUNT","RATE_DAILY","PERIOD"]
[358780554,1745422281388,-151.0,0.00021917,2]
[358780555,1745422281399,-815.0,0.00021917,2]
[358780556,1745422281409,-831.25,0.00021917,2]
[358780557,1745422281419,-2175.19,0.00021917,2]
[358780558,1745422281428,-500.0,0.00021917,2]
[358780559,1745422281439,-4454.73,0.00021917,2]
[358780560,1745422281448,-4421.38,0.00021917,2]
[358780561,1745422281458,-500.0,0.00021917,2]
[358780562,1745422281468,-500.0,0.00021917,2]
[358780563,1745422281477,-479.12431154,0.00021917,2]
[358780564,1745422281487,-500.0,0.00021917,2]
[358780565,1745422281497,-500.0,0.00021917,2]
[358780566,1745422281507,-500.0,0.00021917,2]
[358780567,1745422281519,-500.0,0.00021917,2]
[358780568,1745422281530,-500.0,0.00021917,2]
[358780569,1745422281539,-500.0,0.00021917,2]
[358780570,1745422281549,-500.0,0.00021917,2]
[358780571,1745422281559,-500.0,0.00021917,2]
[358780572,1745422281568,-500.0,0.00021917,2]
[358780573,1745422281578,-500.0,0.00021917,2]
[358780574,1745422281588,-1146.61,0.00021917,2]
[358780575,1745422281598,-733.07,0.00021917,2]
[358780576,1745422281607,-500.0,0.00021917,2]
[358780577,1745422281617,-457.41823506,0.00021917,2]
[358780578,1745422281627,-500.0,0.00021917,2]
[358780579,1745422281636,-500.0,0.00021917,2]
[358780580,1745422281649,-500.0,0.00021917,2]
[358780581,1745422281659,-500.0,0.00021917,2]
[358780582,1745422281669,-500.0,0.00021917,2]
[358780583,1745422281679,-500.0,0.00021917,2]
[358780584,1745422281688,-500.0,0.00021917,2]
[358780585,1745422281698,-559.8,0.00021917,2]
[358780586,1745422281833,-564.99,0.00021917,2]
[358780587,1745422281844,-551.66,0.00021917,2]
[358780588,1745422281854,-500.0,0.00021917,2]
[358780589,1745422281863,-500.0,0.00021917,2]
[358780590,1745422281874,-762.07,0.00021917,2]
[358780591,1745422281884,-1115.7,0.00021917,2]
[358780592,1745422281894,-500.0,0.00021917,2]
[358780593,1745422281906,-688.43,0.00021917,2]
[358780594,1745422281916,-500.0,0.00021917,2]
[358780595,1745422281925,-500.0,0.00021917,2]
[358780596,1745422281935,-578.07436513,0.00021917,2]
[358780597,1745422281944,-500.0,0.00021917,2]
[358780598,1745422281954,-500.0,0.00021917,2]
[358780599,1745422281963,-764.95,0.00021917,2]
[358780600,1745422281973,-884.75,0.00021917,2]
[358780601,1745422281984,-3501.3,0.00021917,2]
[358780602,1745422281994,-500.0,0.00021917,2]
[358780603,1745422282004,-500.0,0.00021917,2]
[358780604,1745422282014,-1338.63,0.00021917,2]
[358780605,1745422282024,-502.07,0.00021917,2]
[358780606,1745422282034,-577.68,0.00021917,2]
[358780607,1745422282044,-500.0,0.00021917,2]
[358780608,1745422282054,-4051.75,0.00021917,2]
[358780609,1745422282064,-500.0,0.00021917,2]
[358780610,1745422282074,-668.05,0.00021917,2]
[358780611,1745422282083,-500.0,0.00021917,2]
[358780612,1745422282093,-500.0,0.00021917,2]
[358780613,1745422282103,-633.95,0.00021917,2]
[358780614,1745422282112,-500.0,0.00021917,2]
[358780615,1745422282122,-1302.8,0.00021917,2]
[358780616,1745422282132,-500.0,0.00021917,2]
[358780617,1745422282141,-1153.65,0.00021917,2]
[358780618,1745422282152,-553.58,0.00021917,2]
[358780619,1745422282162,-716.26,0.00021917,2]
[358780620,1745422282171,-500.0,0.00021917,2]
[358780621,1745422282182,-500.0,0.00021917,2]
[358780622,1745422282192,-579.11209848,0.00021917,2]
[358780623,1745422282202,-500.0,0.00021917,2]
[358780624,1745422282212,-500.0,0.00021917,2]
[358780625,1745422282222,-12296.18,0.00021917,2]
[358780626,1745422282232,-500.0,0.00021917,2]
[358780627,1745422282241,-1046.67,0.00021917,2]
[358780628,1745422282251,-851.89,0.00021917,2]
[358780629,1745422282261,-534.56,0.00021917,2]
[358780630,1745422282271,-1188.25,0.00021917,2]
[358780631,1745422282281,-499.70773283,0.00021917,2]
[358780632,1745422282290,-731.6,0.00021917,2]
[358780633,1745422282300,-500.0,0.00021917,2]
[358780634,1745422282310,-500.0,0.00021917,2]
[358780635,1745422282320,-12626.43,0.00021917,2]
[358780636,1745422282331,-500.0,0.00021917,2]
[358780637,1745422282341,-500.0,0.00021917,2]
[358780638,1745422282350,-500.0,0.00021917,2]
[358780639,1745422282360,-500.0,0.00021917,2]
[358780640,1745422282370,-696.88,0.00021917,2]
[358780641,1745422282380,-500.0,0.00021917,2]
[358780642,1745422282390,-500.0,0.00021917,2]
[358780643,1745422282400,-500.0,0.00021917,2]
[358780644,1745422282410,-500.0,0.00021917,2]
[358780645,1745422282420,-500.0,0.00021917,2]
[358780646,1745422282429,-1205.58,0.00021917,2]
[358780647,1745422282438,-500.0,0.00021917,2]
[358780648,1745422282448,-500.0,0.00021917,2]
[358780649,1745422282458,-500.0,0.00021917,2]
[358780650,1745422282468,-500.0,0.00021917,2]
[358780651,1745422282477,-1012.84,0.00021917,2]
[358780652,1745422282487,-500.0,0.00021917,2]
[358780653,1745422282497,-4914.19,0.00021917,2]
[358780654,1745422282507,-4299.91,0.00021917,2]
[358780655,1745422282516,-510.48,0.00021917,2]
[358780656,1745422282532,-707.64,0.00021917,2]
[358780657,1745422282553,-1181.56,0.00021917,2]
[358780658,1745422282573,-1035.17,0.00021917,2]
[358780659,1745422282594,-863.0,0.00021917,2]
[358780660,1745422282614,-834.94,0.00021917,2]
[358780661,1745422282633,-3435.75,0.00021917,2]
[358780662,1745422282653,-2278.45,0.00021917,2]
[358780663,1745422282672,-753.56,0.00021917,2]
[358780664,1745422282687,-530.38,0.00021917,2]
[358780665,1745422282706,-814.85,0.00021917,2]
[358780666,1745422282726,-535.21,0.00021917,2]
[358780667,1745422282750,-500.0,0.00021917,2]
[358780668,1745422282764,-500.0,0.00021917,2]
[358780669,1745422282785,-249.34222552,0.00021917,2]
[358780670,1745422282802,-890.07,0.00021917,2]
[358780671,1745422282821,-615.6,0.00021917,2]
[358780672,1745422282841,-957.38,0.00021917,2]
[358780673,1745422282858,-926.97,0.00021917,2]
[358780674,1745422282877,-707.38,0.00021917,2]
[358780675,1745422282893,-558.82,0.00021917,2]
[358780676,1745422282911,-1273.56,0.00021917,2]
[358780677,1745422282927,-178.46897023,0.00021917,2]
[358780678,1745422282944,-500.0,0.00021917,2]
[358780679,1745422282961,-1103.17,0.00021917,2]
[358780680,1745422282977,-343.90498842,0.00021917,2]
[358780681,1745422282995,-500.0,0.00021917,2]
[358780682,1745422283013,-500.0,0.00021917,2]
[358780683,1745422283029,-500.0,0.00021917,2]
[358780684,1745422283046,-500.0,0.00021917,2]
[358780685,1745422283064,-500.0,0.00021917,2]
[358780686,1745422283080,-500.0,0.00021917,2]
[358780687,1745422283097,-657.04,0.00021917,2]
[358780688,1745422283113,-500.0,0.00021917,2]
[358780689,1745422283129,-500.0,0.00021917,2]
[358780690,1745422283147,-500.0,0.00021917,2]
[358780691,1745422283163,-2543.41,0.00021917,2]
[358780692,1745422283180,-1609.82,0.00021917,2]
[358780693,1745422283197,-7498.68,0.00021917,2]
[358780694,1745422283214,-783.91,0.00021917,2]
[358780695,1745422283229,-500.0,0.00021917,2]
[358780696,1745422283245,-2933.96,0.00021917,2]
[358780697,1745422283262,-500.0,0.00021917,2]
[358780698,1745422283279,-500.0,0.00021917,2]
[358780699,1745422283295,-692.21,0.00021917,2]
[358780700,1745422283311,-500.0,0.00021917,2]
[358780701,1745422283327,-641.39585467,0.00021917,2]
[358780702,1745422283345,-935.39,0.00021917,2]
[358780703,1745422283362,-500.0,0.00021917,2]
[358780704,1745422283379,-5239.0,0.00021917,2]
[358780705,1745422283395,-537.86,0.00021917,2]
[358780706,1745422283412,-616.52,0.00021917,2]
[358780707,1745422283428,-166.0,0.00021918,2]
[358780708,1745422283445,-545.575682,0.00021918,2]
[358780709,1745422283461,-545.575682,0.00021918,2]
[358780710,1745422283476,-545.575682,0.00021918,2]
[358780711,1745422283493,-545.575682,0.00021918,2]
[358780712,1745422283509,-545.575682,0.00021918,2]
[358780713,1745422283529,-545.575682,0.00021918,2]
[358780714,1745422283545,-545.575682,0.00021918,2]
[358780715,1745422283562,-545.575682,0.00021918,2]
[358780716,1745422283578,-545.575682,0.00021918,2]
[358780717,1745422283595,-545.575682,0.00021918,2]
[358780718,1745422283611,-545.575682,0.00021918,2]
[358780719,1745422283627,-545.575682,0.00021918,2]
[358780720,1745422283644,-545.575682,0.00021918,2]
[358780721,1745422283662,-545.575682,0.00021918,2]
[358780722,1745422283678,-1302.2062606,0.00021918,7]
[358780723,1745422283695,-203.852585,0.00021918,2]
[358780724,1745422283712,-345.64473858,0.00021918,2]
[358780725,1745422283728,-160.0,0.0002192,7]
[358780726,1745422283745,-12573.79847128,0.0002192,7]
[358780727,1745422283762,-160.0,0.0002192,7]
[358780728,1745422283961,-160.0,0.0002192,7]
[358780729,1745422283981,-1000.0,0.00021921,2]
[358780730,1745422283990,-500.0,0.00021973,2]
[358780731,1745422284000,-1000.0,0.00022,22]
[358780732,1745422284010,-11805.18318003,0.00022,2]
[358780733,1745422284020,-47894.19850886,0.00022,7]
[358780734,1745422284030,-810.0,0.00022,4]
[358780735,1745422284040,-229.259739,0.00022,7]
[358780736,1745422284050,-151.0,0.00022,7]
[358780737,1745422284060,-160.0,0.00022,7]
[358780738,1745422284070,-160.0,0.00022,7]
[358780739,1745422284080,-348.59972893,0.00022,2]
[358780740,1745422284090,-1000.0,0.00022,2]
[358780741,1745422284100,-160.0,0.00022,7]
[358780742,1745422284109,-2000.0,0.00022,4]
[358780743,1745422284119,-395.0,0.00022,2]
[358780744,1745422284128,-151.0,0.00022191,7]
[358780745,1745422284138,-500.0,0.00022191,2]
[358780746,1745422284149,-500.0,0.00022191,2]
[358780747,1745422284159,-545.575682,0.00022191,7]
[358780748,1745422284168,-545.575682,0.00022191,7]
[358780749,1745422284179,-544.8423221,0.00022191,2]
[358780750,1745422284189,-594.19,0.00022191,2]
[358780751,1745422284199,-909.19,0.00022191,2]
[358780752,1745422284208,-500.0,0.00022191,2]
[358780753,1745422284218,-500.0,0.00022191,2]
[358780754,1745422284227,-500.0,0.00022191,2]
[358780755,1745422284237,-500.0,0.00022191,2]
[358780756,1745422284246,-896.26,0.00022191,2]
[358780757,1745422284256,-1026.46,0.00022191,2]
[358780758,1745422284267,-296.89770533,0.00022191,2]
[358780759,1745422284277,-500.0,0.00022191,2]
[358780760,1745422284287,-500.0,0.00022191,2]
[358780761,1745422284296,-586.20798047,0.00022191,2]
[358780762,1745422284306,-519.07,0.00022191,2]
[358780763,1745422284316,-151.0,0.00022191,7]
[358780764,1745422284325,-500.0,0.00022191,2]
[358780765,1745422284335,-500.0,0.00022191,2]
[358780766,1745422284344,-500.0,0.00022191,2]
[358780767,1745422284354,-500.0,0.00022191,2]
[358780768,1745422284363,-500.0,0.00022191,2]
[358780769,1745422284373,-1150.28,0.00022191,2]
[358780770,1745422284383,-500.0,0.00022191,2]
[358780771,1745422284392,-544.77,0.00022191,2]
[358780772,1745422284405,-239.32173345,0.00022191,2]
[358780773,1745422284414,-500.0,0.00022191,2]
[358780774,1745422284424,-899.96,0.00022191,2]
[358780775,1745422284434,-500.0,0.00022191,2]
[358780776,1745422284443,-500.0,0.00022191,2]
[358780777,1745422284453,-500.0,0.00022191,2]
[358780778,1745422284462,-3329.35,0.00022191,2]
[358780779,1745422284473,-500.0,0.00022191,2]
[358780780,1745422284483,-528.28,0.00022191,2]
[358780781,1745422284493,-500.0,0.00022191,2]
[358780782,1745422284502,-644.46,0.00022191,2]
[358780783,1745422284512,-500.0,0.00022191,2]
[358780784,1745422284521,-500.0,0.00022191,2]
[358780785,1745422284531,-500.0,0.00022191,2]
[358780786,1745422284541,-756.81,0.00022191,2]
[358780787,1745422284550,-572.66,0.00022191,2]
[358780788,1745422284560,-500.0,0.00022191,2]
[358780789,1745422284569,-500.0,0.00022191,2]
[358780790,1745422284580,-500.0,0.00022191,2]
[358780791,1745422284590,-903.55,0.00022191,2]
[358780792,1745422284600,-506.12,0.00022191,2]
[358780793,1745422284609,-500.0,0.00022191,2]
[358780794,1745422284628,-500.0,0.00022191,2]
[358780795,1745422284642,-500.0,0.00022191,2]
[358780796,1745422284655,-500.0,0.00022191,2]
[358780797,1745422284665,-510.10660604,0.00022191,2]
[358780798,1745422284675,-500.0,0.00022191,2]
[358780799,1745422284686,-2150.63,0.00022191,2]
[358780800,1745422284696,-407.1872806,0.00022191,2]
[358780801,1745422284706,-500.0,0.00022191,2]
[358780802,1745422284716,-500.0,0.00022191,2]
[358780803,1745422284727,-614.57,0.00022191,2]
[358780804,1745422284737,-677.08,0.00022191,2]
[358780805,1745422284747,-596.25,0.00022191,2]
[358780806,1745422284757,-500.0,0.00022191,2]
[358780807,1745422284767,-740.32,0.00022191,2]
[358780808,1745422284776,-855.06,0.00022191,2]
[358780809,1745422284786,-151.0,0.00022191,7]
[358780810,1745422284796,-815.0,0.00022191,2]
[358780811,1745422284807,-831.25,0.00022191,2]
[358780812,1745422284816,-2175.19,0.00022191,2]
[358780813,1745422284830,-500.0,0.00022191,2]
[358780814,1745422284840,-4454.73,0.00022191,2]
[358780815,1745422284850,-4421.38,0.00022191,2]
[358780816,1745422284860,-500.0,0.00022191,2]
[358780817,1745422284871,-257.95921779,0.00022191,2]
[358780818,1745422284883,-500.0,0.00022191,2]
[358780819,1745422284893,-500.0,0.00022191,2]
[358780820,1745422284905,-500.0,0.00022191,2]
[358780821,1745422284916,-500.0,0.00022191,2]
[358780822,1745422284926,-500.0,0.00022191,2]
[358780823,1745422284936,-500.0,0.00022191,2]
[358780824,1745422284946,-500.0,0.00022191,2]
[358780825,1745422284956,-500.0,0.00022191,2]
[358780826,1745422284966,-500.0,0.00022191,2]
[358780827,1745422284976,-500.0,0.00022191,2]
[358780828,1745422284986,-1146.61,0.00022191,2]
[358780829,1745422284996,-733.07,0.00022191,2]
[358780830,1745422285006,-466.86605277,0.00022191,2]
[358780831,1745422285016,-500.0,0.00022191,2]
[358780832,1745422285026,-500.0,0.00022191,2]
[358780833,1745422285036,-500.0,0.00022191,2]
[358780834,1745422285046,-500.0,0.00022191,2]
[358780835,1745422285057,-500.0,0.00022191,2]
[358780836,1745422285067,-500.0,0.00022191,2]
[358780837,1745422285077,-500.0,0.00022191,2]
[358780838,1745422285087,-559.8,0.00022191,2]
[358780839,1745422285097,-564.99,0.00022191,2]
[358780840,1745422285107,-551.66,0.00022191,2]
[358780841,1745422285117,-500.0,0.00022191,2]
[358780842,1745422285127,-500.0,0.00022191,2]
[358780843,1745422285137,-762.07,0.00022191,2]
[358780844,1745422285147,-1115.7,0.00022191,2]
[358780845,1745422285159,-500.0,0.00022191,2]
[358780846,1745422285169,-688.43,0.00022191,2]
[358780847,1745422285179,-500.0,0.00022191,2]
[358780848,1745422285189,-500.0,0.00022191,2]
[358780849,1745422285199,-500.0,0.00022191,2]
[358780850,1745422285209,-500.0,0.00022191,2]
[358780851,1745422285218,-764.95,0.00022191,2]
[358780852,1745422285228,-884.75,0.00022191,2]
[358780853,1745422285243,-3501.3,0.00022191,2]
[358780854,1745422285254,-500.0,0.00022191,2]
[358780855,1745422285264,-500.0,0.00022191,2]
[358780856,1745422285274,-1338.63,0.00022191,2]
[358780857,1745422285284,-502.07,0.00022191,2]
[358780858,1745422285295,-577.68,0.00022191,2]
[358780859,1745422285305,-500.0,0.00022191,2]
[358780860,1745422285314,-4051.75,0.00022191,2]
[358780861,1745422285326,-500.0,0.00022191,2]
[358780862,1745422285336,-668.05,0.00022191,2]
[358780863,1745422285346,-500.0,0.00022191,2]
[358780864,1745422285357,-500.0,0.00022191,2]
[358780865,1745422285367,-633.95,0.00022191,2]
[358780866,1745422285378,-500.0,0.00022191,2]
[358780867,1745422285388,-1302.8,0.00022191,2]
[358780868,1745422285400,-500.0,0.00022191,2]
[358780869,1745422285410,-1153.65,0.00022191,2]
[358780870,1745422285421,-553.58,0.00022191,2]
[358780871,1745422285431,-716.26,0.00022191,2]
[358780872,1745422285441,-500.0,0.00022191,2]
[358780873,1745422285452,-500.0,0.00022191,2]
[358780874,1745422285462,-500.0,0.00022191,2]
[358780875,1745422285472,-500.0,0.00022191,2]
[358780876,1745422285482,-12296.18,0.00022191,2]
[358780877,1745422285492,-500.0,0.00022191,2]
[358780878,1745422285502,-1046.67,0.00022191,2]
[358780879,1745422285512,-851.89,0.00022191,2]
[358780880,1745422285521,-534.56,0.00022191,2]
[358780881,1745422285531,-1188.25,0.00022191,2]
[358780882,1745422285543,-731.6,0.00022191,2]
[358780883,1745422285554,-12626.43,0.00022191,2]
[358780884,1745422285564,-696.88,0.00022191,2]
[358780885,1745422285576,-500.0,0.00022191,2]
[358780886,1745422285597,-1205.58,0.00022191,2]
[358780887,1745422285617,-500.0,0.00022191,2]
[358780888,1745422285627,-500.0,0.00022191,2]
[358780889,1745422285637,-500.0,0.00022191,2]
[358780890,1745422285647,-500.0,0.00022191,2]
[358780891,1745422285661,-1012.84,0.00022191,2]
[358780892,1745422285671,-500.0,0.00022191,2]
[358780893,1745422285681,-4914.19,0.00022191,2]
[358780894,1745422285691,-4299.91,0.00022191,2]
[358780895,1745422285702,-510.48,0.00022191,2]
[358780896,1745422285712,-707.64,0.00022191,2]
[358780897,1745422285722,-1181.56,0.00022191,2]
[358780898,1745422285733,-1035.17,0.00022191,2]
[358780899,1745422285744,-863.0,0.00022191,2]
[358780900,1745422285755,-834.94,0.00022191,2]
[358780901,1745422285765,-3435.75,0.00022191,2]
[358780902,1745422285775,-2278.45,0.00022191,2]
[358780903,1745422285785,-753.56,0.00022191,2]
[358780904,1745422285795,-530.38,0.00022191,2]
[358780905,1745422285806,-814.85,0.00022191,2]
[358780906,1745422285977,-535.21,0.00022191,2]
[358780907,1745422285988,-500.0,0.00022191,2]
[358780908,1745422285999,-500.0,0.00022191,2]
[358780909,1745422286010,-890.07,0.00022191,2]
[358780910,1745422286020,-615.6,0.00022191,2]
[358780911,1745422286030,-957.38,0.00022191,2]
[358780912,1745422286041,-926.97,0.00022191,2]
[358780913,1745422286051,-707.38,0.00022191,2]
[358780914,1745422286061,-558.82,0.00022191,2]
[358780915,1745422286072,-1273.56,0.00022191,2]
[358780916,1745422286082,-500.0,0.00022191,2]
[358780917,1745422286092,-1103.17,0.00022191,2]
[358780918,1745422286103,-500.0,0.00022191,2]
[358780919,1745422286113,-500.0,0.00022191,2]
[358780920,1745422286123,-500.0,0.00022191,2]
[358780921,1745422286134,-500.0,0.00022191,2]
[358780922,1745422286144,-500.0,0.00022191,2]
[358780923,1745422286159,-500.0,0.00022191,2]
[358780924,1745422286169,-657.04,0.00022191,2]
[358780925,1745422286179,-500.0,0.00022191,2]
[358780926,1745422286189,-422.54398122,0.00022191,2]
[358780927,1745422286199,-500.0,0.00022191,2]
[358780928,1745422286209,-2543.41,0.00022191,2]
[358780929,1745422286218,-1609.82,0.00022191,2]
[358780930,1745422286228,-7498.68,0.00022191,2]
[358780931,1745422286237,-783.91,0.00022191,2]
[358780932,1745422286247,-500.0,0.00022191,2]
[358780933,1745422286256,-2933.96,0.00022191,2]
[358780934,1745422286266,-692.21,0.00022191,2]
[358780935,1745422286275,-500.0,0.00022191,2]
[358780936,1745422286285,-5239.0,0.00022191,2]
[358780937,1745422286295,-935.39,0.00022191,2]
[358780938,1745422286305,-537.86,0.00022191,2]
[358780939,1745422286315,-616.52,0.00022191,2]
[358780940,1745422286324,-395.0,0.00022192,2]
[358780941,1745422286334,-151.0,0.00022454,2]
[358780942,1745422286343,-151.0,0.00022465,7]
[358780943,1745422286353,-500.0,0.00022465,2]
[358780944,1745422286363,-500.0,0.00022465,2]
[358780945,1745422286372,-545.575682,0.00022465,7]
[358780946,1745422286382,-545.575682,0.00022465,7]
[358780947,1745422286392,-594.19,0.00022465,2]
[358780948,1745422286406,-909.19,0.00022465,2]
[358780949,1745422286416,-500.0,0.00022465,2]
[358780950,1745422286426,-500.0,0.00022465,2]
[358780951,1745422286438,-500.0,0.00022465,2]
[358780952,1745422286448,-500.0,0.00022465,2]
[358780953,1745422286458,-896.26,0.00022465,2]
[358780954,1745422286468,-1026.46,0.00022465,2]
[358780955,1745422286477,-500.0,0.00022465,2]
[358780956,1745422286487,-500.0,0.00022465,2]
[358780957,1745422286497,-519.07,0.00022465,2]
[358780958,1745422286506,-151.0,0.00022465,7]
[358780959,1745422286516,-500.0,0.00022465,2]
[358780960,1745422286525,-151.0,0.00022465,7]
[358780961,1745422286535,-500.0,0.00022465,2]
[358780962,1745422286545,-628.39853355,0.00022465,2]
[358780963,1745422286555,-500.0,0.00022465,2]
[358780964,1745422286564,-500.0,0.00022465,2]
[358780965,1745422286574,-1150.28,0.00022465,2]
[358780966,1745422286583,-500.0,0.00022465,2]
[358780967,1745422286593,-544.77,0.00022465,2]
[358780968,1745422286603,-500.0,0.00022465,2]
[358780969,1745422286612,-899.96,0.00022465,2]
[358780970,1745422286622,-500.0,0.00022465,2]
[358780971,1745422286631,-500.0,0.00022465,2]
[358780972,1745422286641,-500.0,0.00022465,2]
[358780973,1745422286653,-3329.35,0.00022465,2]
[358780974,1745422286664,-500.0,0.00022465,2]
[358780975,1745422286674,-528.28,0.00022465,2]
[358780976,1745422286684,-478.86628921,0.00022465,2]
[358780977,1745422286694,-644.46,0.00022465,2]
[358780978,1745422286704,-500.0,0.00022465,2]
[358780979,1745422286713,-500.0,0.00022465,2]
[358780980,1745422286724,-500.0,0.00022465,2]
[358780981,1745422286734,-756.81,0.00022465,2]
[358780982,1745422286744,-572.66,0.00022465,2]
[358780983,1745422286766,-500.0,0.00022465,2]
[358780984,1745422286777,-511.68326398,0.00022465,2]
[358780985,1745422286787,-500.0,0.00022465,2]
[358780986,1745422286798,-903.55,0.00022465,2]
[358780987,1745422286808,-506.12,0.00022465,2]
[358780988,1745422286818,-500.0,0.00022465,2]
[358780989,1745422286832,-500.0,0.00022465,2]
[358780990,1745422286843,-500.0,0.00022465,2]
[358780991,1745422286852,-500.0,0.00022465,2]
[358780992,1745422286863,-500.0,0.00022465,2]
[358780993,1745422286874,-2150.63,0.00022465,2]
[358780994,1745422286884,-500.0,0.00022465,2]
[358780995,1745422286894,-500.0,0.00022465,2]
[358780996,1745422286910,-614.57,0.00022465,2]
[358780997,1745422286920,-677.08,0.00022465,2]
[358780998,1745422286930,-596.25,0.00022465,2]
[358780999,1745422286940,-500.0,0.00022465,2]
[358781000,1745422286951,-740.32,0.00022465,2]
[358781001,1745422286961,-855.06,0.00022465,2]
[358781002,1745422286971,-151.0,0.00022465,7]
[358781003,1745422286981,-815.0,0.00022465,2]
[358781004,1745422286993,-831.25,0.00022465,2]
[358781005,1745422287003,-2175.19,0.00022465,2]
[358781006,1745422287013,-500.0,0.00022465,2]
[358781007,1745422287024,-4454.73,0.00022465,2]
[358781008,1745422287034,-4421.38,0.00022465,2]
[358781009,1745422287045,-500.0,0.00022465,2]
[358781010,1745422287056,-500.0,0.00022465,2]
[358781011,1745422287066,-500.0,0.00022465,2]
[358781012,1745422287077,-500.0,0.00022465,2]
[358781013,1745422287087,-157.73825472,0.00022465,2]
[358781014,1745422287097,-500.0,0.00022465,2]
[358781015,1745422287107,-500.0,0.00022465,2]
[358781016,1745422287117,-500.0,0.00022465,2]
[358781017,1745422287127,-500.0,0.00022465,2]
[358781018,1745422287137,-500.0,0.00022465,2]
[358781019,1745422287147,-500.0,0.00022465,2]
[358781020,1745422287160,-1146.61,0.00022465,2]
[358781021,1745422287170,-733.07,0.00022465,2]
[358781022,1745422287180,-500.0,0.00022465,2]
[358781023,1745422287190,-500.0,0.00022465,2]
[358781024,1745422287200,-323.32001371,0.00022465,2]
[358781025,1745422287210,-500.0,0.00022465,2]
[358781026,1745422287221,-500.0,0.00022465,2]
[358781027,1745422287233,-500.0,0.00022465,2]
[358781028,1745422287243,-179.74372374,0.00022465,2]
[358781029,1745422287253,-559.8,0.00022465,2]
[358781030,1745422287264,-564.99,0.00022465,2]
[358781031,1745422287274,-551.66,0.00022465,2]
[358781032,1745422287284,-500.0,0.00022465,2]
[358781033,1745422287294,-500.0,0.00022465,2]
[358781034,1745422287304,-762.07,0.00022465,2]
[358781035,1745422287314,-1115.7,0.00022465,2]
[358781036,1745422287325,-500.0,0.00022465,2]
[358781037,1745422287335,-688.43,0.00022465,2]
[358781038,1745422287346,-500.0,0.00022465,2]
[358781039,1745422287356,-370.11864375,0.00022465,2]
[358781040,1745422287367,-406.44140469,0.00022465,2]
[358781041,1745422287378,-500.0,0.00022465,2]
[358781042,1745422287394,-764.95,0.00022465,2]
[358781043,1745422287407,-884.75,0.00022465,2]
[358781044,1745422287418,-3501.3,0.00022465,2]
[358781045,1745422287429,-500.0,0.00022465,2]
[358781046,1745422287439,-500.0,0.00022465,2]
[358781047,1745422287450,-1338.63,0.00022465,2]
[358781048,1745422287460,-502.07,0.00022465,2]
[358781049,1745422287471,-577.68,0.00022465,2]
[358781050,1745422287481,-500.0,0.00022465,2]
[358781051,1745422287491,-4051.75,0.00022465,2]
[358781052,1745422287502,-500.0,0.00022465,2]
[358781053,1745422287513,-668.05,0.00022465,2]